[Event "Chpt Reg Jeunes Occitanie 2026 - Espalion"]
[Site "Espalion, France"]
[Round "6.11"]
[ECO "?"]
[Annotator "?"]
[TimeControl "1h30 + 30sec/cp"]

1. e4 {[%clk 1:30:58][%emt 0:00:02]} 1... c5 {[%clk 1:30:44][%emt 0:00:17]} 2.
Nf3 {[%clk 1:31:25][%emt 0:00:04]} 2... Nc6 {[%clk 1:31:06][%emt 0:00:07]} 3.
d4 {[%clk 1:31:51][%emt 0:00:04]} 3... cxd4 {[%clk 1:31:30][%emt 0:00:06]} 4.
Nxd4 {[%clk 1:32:18][%emt 0:00:04]} 4... Nf6 {[%clk 1:31:03][%emt 0:00:57]} 5.
Nc3 {[%clk 1:32:43][%emt 0:00:06]} 5... h5 {[%clk 1:31:28][%emt 0:00:04]} 6.
Be2 {[%clk 1:31:01][%emt 0:02:12]} 6... d6 {[%clk 1:29:31][%emt 0:02:27]} 7.
Bg5 {[%clk 1:30:53][%emt 0:00:38]} 7... Qa5 {[%clk 1:28:19][%emt 0:01:42]} 8.
Bxf6 {[%clk 1:25:10][%emt 0:06:13]} 8... gxf6 {[%clk 1:28:47][%emt 0:00:02]}
9. Nb3 {[%clk 1:23:32][%emt 0:02:09]} 9... Qe5 {[%clk 1:23:11][%emt 0:06:05]}
10. Qd5 {[%clk 1:18:01][%emt 0:06:00]} 10... Be6 {[%clk 1:21:02][%emt 0:02:39]}
 11. Qxe5 {[%clk 1:17:42][%emt 0:00:50]} 11... fxe5 {[%clk 1:19:51][%emt
0:01:41]} 12. O-O-O {[%clk 1:16:00][%emt 0:02:13]} 12... Rc8 {[%clk
1:17:03][%emt 0:03:17]} 13. Nd5 {[%clk 1:13:11][%emt 0:03:19]} 13... f5 {[%clk
1:10:43][%emt 0:06:50]} 14. Bf3 {[%clk 1:10:08][%emt 0:03:33]} 14... Bxd5
{[%clk 1:02:52][%emt 0:08:21]} 15. exd5 {[%clk 1:10:04][%emt 0:00:34]} 15...
Nb4 {[%clk 1:02:11][%emt 0:01:11]} 16. c3 {[%clk 1:10:24][%emt 0:00:10]} 16...
Na6 {[%clk 1:01:47][%emt 0:00:54]} 17. h3 {[%clk 1:02:51][%emt 0:08:02]} 17...
Nc5 {[%clk 0:53:26][%emt 0:08:51]} 18. g4 {[%clk 0:59:41][%emt 0:03:40]} 18...
e4 {[%clk 0:49:38][%emt 0:04:20]} 19. Be2 {[%clk 0:59:16][%emt 0:00:54]} 19...
f4 {[%clk 0:43:24][%emt 0:06:44]} 20. g5 {[%clk 0:53:48][%emt 0:05:58]} 20...
e5 {[%clk 0:38:37][%emt 0:05:17]} 21. dxe6 {[%clk 0:53:13][%emt 0:01:05]}
21... Nxe6 {[%clk 0:38:22][%emt 0:00:44]} 22. h4 {[%clk 0:53:10][%emt 0:00:34]}
 22... Ke7 {[%clk 0:33:13][%emt 0:05:40]} 23. Rhe1 {[%clk 0:52:36][%emt
0:01:03]} 23... Bg7 {[%clk 0:28:51][%emt 0:04:52]} 24. Bf1 {[%clk
0:51:22][%emt 0:01:44]} 24... e3 {[%clk 0:29:02][%emt 0:00:19]} 25. fxe3
{[%clk 0:49:05][%emt 0:02:47]} 25... Be5 {[%clk 0:29:31]} 26. Nd4 {[%clk
0:46:15][%emt 0:03:21]} 26... Rcf8 {[%clk 0:27:45][%emt 0:02:16]} 27. Bh3
{[%clk 0:42:46][%emt 0:03:58]} 27... Ng7 {[%clk 0:26:14][%emt 0:02:02]} 28.
Nf3 {[%clk 0:41:11][%emt 0:02:05]} 28... Ne6 {[%clk 0:22:41][%emt 0:04:03]}
29. Nxe5 {[%clk 0:39:58][%emt 0:01:44]} 29... dxe5 {[%clk 0:23:10]} 30. exf4
{[%clk 0:40:10][%emt 0:00:17]} 30... Nxf4 {[%clk 0:23:39]} 31. Rxe5+ {[%clk
0:40:10][%emt 0:00:30]} 31... Kf7 {[%clk 0:24:08]} 32. Rd7+ {[%clk
0:40:21][%emt 0:00:20]} 32... Kg6 {[%clk 0:24:10][%emt 0:00:28]} 33. Bf5+
{[%clk 0:40:04][%emt 0:00:46]} 33... Rxf5 {[%clk 0:24:27][%emt 0:00:14]} 34.
Rd6+ {[%clk 0:40:30][%emt 0:00:05]} 1-0

[White "JARRY, Pierre"]
[Black "PETITGRAND, Leo"]
[WhiteElo "1717"]
[BlackElo "1644"]
[Result "1/2-1/2"]
[Date "2026.03.06"]

[Event "Chpt Reg Jeunes Occitanie 2026 - Espalion"]
[Site "Espalion, France"]
[Round "6.12"]
[ECO "?"]
[Annotator "?"]
[TimeControl "1h30 + 30sec/cp"]

1. d4 {[%clk 1:30:57][%emt 0:00:02]} 1... Nf6 {[%clk 1:29:39][%emt 0:01:21]}
2. Nf3 {[%clk 1:31:08][%emt 0:00:19]} 2... e6 {[%clk 1:30:03][%emt 0:00:06]}
3. c4 {[%clk 1:31:25][%emt 0:00:12]} 3... d5 {[%clk 1:30:30][%emt 0:00:04]} 4.
Nc3 {[%clk 1:31:34][%emt 0:00:21]} 4... Bb4 {[%clk 1:30:41][%emt 0:00:20]} 5.
a3 {[%clk 1:29:45][%emt 0:02:18]} 5... Bxc3+ {[%clk 1:31:05][%emt 0:00:05]} 6.
bxc3 {[%clk 1:30:09][%emt 0:00:07]} 6... b6 {[%clk 1:30:51][%emt 0:00:44]} 7.
cxd5 {[%clk 1:28:15][%emt 0:02:24]} 7... exd5 {[%clk 1:30:47][%emt 0:00:34]}
8. Bg5 {[%clk 1:28:03][%emt 0:00:42]} 8... Nbd7 {[%clk 1:30:49][%emt 0:00:29]}
9. e3 {[%clk 1:27:42][%emt 0:00:50]} 9... h6 {[%clk 1:30:25][%emt 0:00:53]}
10. Bh4 {[%clk 1:27:56][%emt 0:00:16]} 10... Bb7 {[%clk 1:30:02][%emt 0:00:53]}
 11. Be2 {[%clk 1:25:04][%emt 0:03:22]} 11... Rc8 {[%clk 1:27:17][%emt
0:03:15]} 12. O-O {[%clk 1:23:24][%emt 0:02:10]} 12... g5 {[%clk 1:25:19][%emt
0:02:27]} 13. Bg3 {[%clk 1:23:45][%emt 0:00:10]} 13... Ne4 {[%clk
1:25:31][%emt 0:00:18]} 14. Qc2 {[%clk 1:23:25][%emt 0:00:50]} 14... h5 {[%clk
1:23:30][%emt 0:02:31]} 15. h4 {[%clk 1:19:48][%emt 0:04:06]} 15... g4 {[%clk
1:21:44][%emt 0:02:16]} 16. Nd2 {[%clk 1:16:33][%emt 0:03:46]} 16... Ndf6
{[%clk 1:20:41][%emt 0:01:33]} 17. Nxe4 {[%clk 1:13:48][%emt 0:03:14]} 17...
Nxe4 {[%clk 1:21:04][%emt 0:00:08]} 1/2-1/2

[White "VALMIR, Clovis"]
[Black "SARDARYAN, Arman"]
[WhiteElo "2006"]
[BlackElo "1698"]
[Result "1-0"]
[Date "2026.03.06"]

[Event "Chpt Reg Jeunes Occitanie 2026 - Espalion"]
[Site "Espalion, France"]
[Round "6.13"]
[ECO "?"]
[Annotator "?"]
[TimeControl "1h30 + 30sec/cp"]

1. e4 {[%clk 1:30:27][%emt 0:00:32]} 1... b6 {[%clk 1:30:35][%emt 0:00:19]} 2.
d4 {[%clk 1:30:07][%emt 0:00:56]} 2... Bb7 {[%clk 1:30:40][%emt 0:00:20]} 3.
Bd3 {[%clk 1:30:29][%emt 0:00:13]} 3... e6 {[%clk 1:29:42][%emt 0:01:22]} 4.
Nf3 {[%clk 1:29:03][%emt 0:02:03]} 4... c5 {[%clk 1:28:38][%emt 0:01:28]} 5.
Nc3 {[%clk 1:28:16][%emt 0:01:23]} 5... cxd4 {[%clk 1:26:48][%emt 0:02:09]} 6.
Nxd4 {[%clk 1:28:26][%emt 0:00:31]} 6... Bb4 {[%clk 1:26:28][%emt 0:00:44]} 7.
O-O {[%clk 1:27:24][%emt 0:01:39]} 7... Bxc3 {[%clk 1:24:23][%emt 0:02:28]} 8.
bxc3 {[%clk 1:27:33][%emt 0:00:28]} 8... Nf6 {[%clk 1:23:41][%emt 0:01:05]} 9.
e5 {[%clk 1:24:02][%emt 0:04:07]} 9... Ne4 {[%clk 1:23:13][%emt 0:00:47]} 10.
Qg4 {[%clk 1:23:57][%emt 0:00:47]} 10... Nxc3 {[%clk 1:21:13][%emt 0:01:49]}
11. Qxg7 {[%clk 1:23:56][%emt 0:01:11]} 11... Rf8 {[%clk 1:21:27][%emt
0:00:17]} 12. Ba3 {[%clk 1:24:18][%emt 0:00:08]} 12... d6 {[%clk 1:21:01][%emt
0:00:57]} 13. Bxd6 {[%clk 1:24:39][%emt 0:00:08]} 13... Nd7 {[%clk
1:20:51][%emt 0:00:39]} 14. Bb5 {[%clk 1:24:39][%emt 0:00:30]} 14... Nxb5
{[%clk 1:17:46][%emt 0:03:36]} 15. Nxb5 {[%clk 1:25:00][%emt 0:00:08]} 15...
Rc8 {[%clk 1:15:30][%emt 0:02:48]} 16. Rad1 {[%clk 1:25:15][%emt 0:00:13]}
16... Bd5 {[%clk 1:15:20][%emt 0:00:41]} 17. Rxd5 {[%clk 1:25:20][%emt
0:00:25]} 17... exd5 {[%clk 1:15:07][%emt 0:00:44]} 18. Bxf8 {[%clk
1:25:04][%emt 0:00:45]} 18... Nxf8 {[%clk 1:12:08][%emt 0:03:20]} 19. Nd6+
{[%clk 1:25:28][%emt 0:00:15]} 19... Kd7 {[%clk 1:12:04][%emt 0:00:35]} 20.
Qxf7+ {[%clk 1:25:51][%emt 0:00:06]} 20... Kc6 {[%clk 1:11:13][%emt 0:01:22]}
21. Qb7+ {[%clk 1:26:01][%emt 0:00:18]} 21... Kc5 {[%clk 1:08:10][%emt
0:03:33]} 22. Rd1 {[%clk 1:26:22][%emt 0:00:10]} 22... d4 {[%clk 1:06:48][%emt
0:01:53]} 23. c4 {[%clk 1:26:19][%emt 0:00:32]} 23... a6 {[%clk 1:03:50][%emt
0:03:28]} 24. Qd5+ {[%clk 1:26:28][%emt 0:00:21]} 24... Kb4 {[%clk
0:59:59][%emt 0:04:09]} 25. Qxd4 {[%clk 1:26:18][%emt 0:00:51]} 25... Ne6
{[%clk 0:59:45][%emt 0:00:44]} 26. Rb1+ {[%clk 1:26:28][%emt 0:00:20]} 26...
Ka5 {[%clk 0:58:55][%emt 0:01:21]} 27. Qc3+ {[%clk 1:26:15][%emt 0:00:43]}
27... Ka4 {[%clk 0:59:14][%emt 0:00:11]} 28. Qb4# {[%clk 1:26:07][%emt
0:00:05]} 1-0

[White "MAURY, Tom"]
[Black "BEUCHER, Simon"]
[WhiteElo "1701"]
[BlackElo "1765"]
[Result "0-1"]
[Date "2026.03.06"]

[Event "Chpt Reg Jeunes Occitanie 2026 - Espalion"]
[Site "Espalion, France"]
[Round "6.14"]
[ECO "?"]
[Annotator "?"]
[TimeControl "1h30 + 30sec/cp"]

1. e4 {[%clk 1:30:57][%emt 0:00:02]} 1... e6 {[%clk 1:30:40][%emt 0:00:21]} 2.
d4 {[%clk 1:31:15][%emt 0:00:13]} 2... d5 {[%clk 1:30:43][%emt 0:00:26]} 3.
Nc3 {[%clk 1:30:43][%emt 0:01:02]} 3... dxe4 {[%clk 1:30:52][%emt 0:00:21]} 4.
Nxe4 {[%clk 1:30:50][%emt 0:00:22]} 4... Nd7 {[%clk 1:31:10][%emt 0:00:12]} 5.
Nf3 {[%clk 1:30:06][%emt 0:01:15]} 5... Ngf6 {[%clk 1:28:45][%emt 0:02:55]} 6.
Nxf6+ {[%clk 1:29:13][%emt 0:01:22]} 6... Nxf6 {[%clk 1:28:52][%emt 0:00:23]}
7. a3 {[%clk 1:28:14][%emt 0:01:30]} 7... c5 {[%clk 1:28:12][%emt 0:01:10]} 8.
Bf4 {[%clk 1:26:41][%emt 0:02:01]} 8... cxd4 {[%clk 1:26:07][%emt 0:02:36]} 9.
Qxd4 {[%clk 1:26:35][%emt 0:00:36]} 9... Qxd4 {[%clk 1:22:58][%emt 0:03:39]}
10. Nxd4 {[%clk 1:26:58][%emt 0:00:07]} 10... Bc5 {[%clk 1:21:01][%emt
0:02:27]} 11. Nb5 {[%clk 1:24:09][%emt 0:03:19]} 11... Nd5 {[%clk
1:17:45][%emt 0:03:45]} 12. Bg3 {[%clk 1:15:13][%emt 0:09:25]} 12... a6 {[%clk
1:12:39][%emt 0:05:37]} 13. Nd6+ {[%clk 1:12:12][%emt 0:03:31]} 13... Ke7
{[%clk 1:11:41][%emt 0:01:29]} 14. Ne4 {[%clk 1:11:53][%emt 0:00:48]} 14...
Bb6 {[%clk 1:10:16][%emt 0:01:55]} 15. Bc4 {[%clk 1:11:45][%emt 0:00:38]}
15... Bc7 {[%clk 1:04:12][%emt 0:06:34]} 16. Bxc7 {[%clk 1:09:13][%emt
0:03:01]} 16... Nxc7 {[%clk 1:04:06][%emt 0:00:37]} 17. O-O-O {[%clk
1:09:21][%emt 0:00:21]} 17... Bd7 {[%clk 1:03:35][%emt 0:01:02]} 18. Rd2
{[%clk 1:05:48][%emt 0:04:03]} 18... Rhd8 {[%clk 1:01:41][%emt 0:02:24]} 19.
f3 {[%clk 1:03:20][%emt 0:02:58]} 19... Bc6 {[%clk 0:58:27][%emt 0:03:45]} 20.
Bd3 {[%clk 0:55:44][%emt 0:08:05]} 20... Nd5 {[%clk 0:55:11][%emt 0:03:45]}
21. Rhd1 {[%clk 0:48:14][%emt 0:07:59]} 21... Nf4 {[%clk 0:52:32][%emt
0:03:10]} 22. Nc5 {[%clk 0:46:39][%emt 0:02:05]} 22... Nxd3+ {[%clk
0:49:51][%emt 0:03:13]} 23. Nxd3 {[%clk 0:46:59][%emt 0:00:09]} 23... Rd6
{[%clk 0:47:40][%emt 0:02:40]} 24. Ne5 {[%clk 0:46:10][%emt 0:01:19]} 24...
Rxd2 {[%clk 0:47:11][%emt 0:01:00]} 25. Nxc6+ {[%clk 0:46:30][%emt 0:00:10]}
25... bxc6 {[%clk 0:47:31][%emt 0:00:09]} 26. Rxd2 {[%clk 0:46:54][%emt
0:00:06]} 26... Rd8 {[%clk 0:47:11][%emt 0:00:51]} 27. Rxd8 {[%clk
0:46:55][%emt 0:00:29]} 27... Kxd8 {[%clk 0:47:40]} 28. Kd2 {[%clk
0:46:38][%emt 0:00:47]} 28... Kc7 {[%clk 0:47:33][%emt 0:00:37]} 29. Kc3
{[%clk 0:45:53][%emt 0:01:15]} 29... c5 {[%clk 0:46:34][%emt 0:01:29]} 30. f4
{[%clk 0:43:12][%emt 0:03:11]} 30... f6 {[%clk 0:44:13][%emt 0:02:50]} 31. Kc4
{[%clk 0:43:15][%emt 0:00:28]} 31... Kc6 {[%clk 0:41:42][%emt 0:03:01]} 32. c3
{[%clk 0:42:34][%emt 0:01:12]} 32... g5 {[%clk 0:36:58][%emt 0:05:13]} 33. g3
{[%clk 0:42:54][%emt 0:00:10]} 33... g4 {[%clk 0:35:22][%emt 0:02:07]} 34. b4
{[%clk 0:41:56][%emt 0:01:28]} 34... e5 {[%clk 0:32:06][%emt 0:03:45]} 35.
fxe5 {[%clk 0:42:14][%emt 0:00:12]} 35... fxe5 {[%clk 0:32:25][%emt 0:00:11]}
36. bxc5 {[%clk 0:36:59][%emt 0:05:46]} 36... a5 {[%clk 0:30:18][%emt 0:02:36]}
 37. a4 {[%clk 0:35:58][%emt 0:01:31]} 37... h6 {[%clk 0:24:48][%emt 0:06:00]}
38. Kd3 {[%clk 0:28:07][%emt 0:08:21]} 38... Kxc5 {[%clk 0:23:49][%emt
0:01:29]} 39. Ke4 {[%clk 0:28:28][%emt 0:00:08]} 39... Kc4 {[%clk
0:23:37][%emt 0:00:43]} 40. Kxe5 {[%clk 0:28:52][%emt 0:00:06]} 40... Kxc3
{[%clk 0:24:02][%emt 0:00:04]} 41. Kf4 {[%clk 0:29:16][%emt 0:00:06]} 41...
Kb4 {[%clk 0:24:09][%emt 0:00:24]} 42. Kxg4 {[%clk 0:29:39][%emt 0:00:06]}
42... Kxa4 {[%clk 0:24:33][%emt 0:00:06]} 43. Kh5 {[%clk 0:30:02][%emt
0:00:07]} 43... Kb4 {[%clk 0:24:34][%emt 0:00:29]} 44. Kxh6 {[%clk
0:30:23][%emt 0:00:09]} 44... a4 {[%clk 0:25:01][%emt 0:00:04]} 45. g4 {[%clk
0:30:42][%emt 0:00:10]} 45... a3 {[%clk 0:25:27][%emt 0:00:04]} 46. g5 {[%clk
0:31:04][%emt 0:00:08]} 46... a2 {[%clk 0:25:52][%emt 0:00:06]} 47. g6 {[%clk
0:31:27][%emt 0:00:06]} 47... a1=Q {[%clk 0:26:11][%emt 0:00:12]} 48. g7
{[%clk 0:31:50][%emt 0:00:06]} 48... Qf6+ {[%clk 0:25:40][%emt 0:01:01]} 49.
Kh7 {[%clk 0:32:11][%emt 0:00:08]} 49... Qf7 {[%clk 0:25:51][%emt 0:00:20]}
50. Kh8 {[%clk 0:32:19][%emt 0:00:22]} 50... Qh5+ {[%clk 0:26:03][%emt
0:00:18]} 51. Kg8 {[%clk 0:32:43][%emt 0:00:06]} 51... Kc5 {[%clk
0:26:01][%emt 0:00:32]} 52. Kf8 {[%clk 0:33:00][%emt 0:00:13]} 52... Qf5+
{[%clk 0:26:21][%emt 0:00:10]} 53. Ke7 {[%clk 0:33:12][%emt 0:00:17]} 53...
Qg6 {[%clk 0:26:25][%emt 0:00:26]} 54. Kf8 {[%clk 0:33:29][%emt 0:00:13]}
54... Qf6+ {[%clk 0:26:49][%emt 0:00:06]} 55. Kg8 {[%clk 0:33:54][%emt
0:00:05]} 55... Kd6 {[%clk 0:27:13][%emt 0:00:07]} 0-1

[White "VALYAEV, Paul"]
[Black "DO, Alex"]
[WhiteElo "1746"]
[BlackElo "1683"]
[Result "1-0"]
[Date "2026.03.06"]